bitfinex-derivatives/quotes_SOLF0:USTF0_20241216
["timestamp","ask_amount","ask_price","bid_price","bid_amount"]
[1734340365709,14.40789651,219.42,219.3,1.5078]
[1734340365914,2.2805,219.35,219.31,5.15155207]
[1734340366118,2.2805,219.35,219.3,1.5078]
[1734340366418,2.2805,219.35,219.31,5.15231084]
[1734340366612,2.2805,219.35,219.3,1.5078]
[1734340366809,2.2805,219.35,219.31,5.15234635]
[1734340367015,2.2805,219.35,219.3,1.5078]
[1734340367214,2.2805,219.35,219.3,3.7887]
[1734340367517,2.2805,219.35,219.31,5.15259459]
[1734340367719,2.2805,219.35,219.3,3.7887]
[1734340368018,2.2805,219.35,219.31,5.152581]
[1734340368218,2.2805,219.35,219.3,3.7887]
[1734340368417,2.2805,219.35,219.31,5.15286221]
[1734340368716,2.2805,219.35,219.3,3.7887]
[1734340368916,2.2805,219.35,219.31,5.15284775]
[1734340369218,12.12819651,219.42,219.3,3.7887]
[1734340369413,2.2806,219.34,219.31,5.15337128]
[1734340369614,12.12819651,219.42,219.3,1.5078]
[1734340369814,12.12819651,219.42,219.35,0.68]
[1734340370011,2.2803,219.36,219.35,0.68]
[1734340371020,2.2802,219.37,219.35,0.68]
[1734340372019,9.88819651,219.42,219.35,2.9604]
[1734340372020,2.28,219.4,219.35,2.9604]
[1734340372218,2.24,219.42,219.35,2.9604]
[1734340372416,2.24,219.42,219.35,0.68]
[1734340372715,2.2802,219.37,219.35,0.68]
[1734340372911,2.24,219.42,219.35,0.68]
[1734340373511,2.2803,219.37,219.35,0.68]
[1734340374020,2.2803,219.37,219.33,2.2806]
[1734340374224,12.12819651,219.42,219.3,1.5078]
[1734340374521,12.12819651,219.42,219.31,5.15672783]
[1734340374822,2.2806,219.34,219.32,5.15672783]
[1734340375122,12.12819651,219.42,219.3,1.5078]
[1734340375321,12.12819651,219.42,219.35,0.68]
[1734340375614,9.88819651,219.38,219.1,2.24]
[1734340375821,9.88819651,219.33,219.2,1.4935]
[1734340376021,2.24,219.32,219.21,23.30447021]
[1734340376221,2.2814,219.27,219.22,13.4162737]
[1734340376418,2.2814,219.27,219.23,5.16010527]
[1734340376623,2.2814,219.27,219.21,12.17009651]
[1734340376818,2.2814,219.26,219.22,5.15943325]
[1734340377023,2.2814,219.26,219.21,12.17009651]
[1734340377321,53.7244,219.41,219.24,9.88819651]
[1734340377322,2.24,219.3,219.24,9.88819651]
[1734340377522,9.88819651,219.36,219.27,0.68]
[1734340377523,2.24,219.31,219.27,0.68]
[1734340378025,2.2811,219.29,219.27,7.01061662]
[1734340380427,2.24,219.32,219.27,7.01061662]
[1734340380927,2.2809,219.31,219.27,7.01061662]
[1734340381129,2.24,219.34,219.28,5.16010798]
[1734340381425,2.24,219.34,219.27,7.01061662]
[1734340381625,2.24,219.34,219.28,5.16083439]
[1734340381828,2.24,219.34,219.27,6.33061662]
[1734340382126,2.24,219.34,219.28,5.16097575]
[1734340382318,2.2809,219.31,219.27,6.33061662]
[1734340382522,6.33061662,219.33,219.26,6.33061662]
[1734340382720,6.33061662,219.33,219.28,5.16177081]
[1734340382926,6.33061662,219.33,219.22,2.24]
[1734340383127,6.33061662,219.33,219.25,6.33061662]
[1734340384129,2.2813,219.28,219.25,6.33061662]
[1734340384425,5.57623945,219.37,219.27,6.33061662]
[1734340384626,6.33061662,219.34,219.29,0.68]
[1734340385223,5.57623945,219.37,219.31,6.33061662]
[1734340385421,2.24,219.36,219.31,6.33061662]
[1734340385832,2.2805,219.35,219.31,6.33061662]
[1734340386331,2.2806,219.34,219.32,5.16417814]
[1734340386526,2.2806,219.34,219.31,6.33061662]
[1734340386831,2.24,219.36,219.32,2.2807]
[1734340387331,8.57061662,219.36,219.3,10.85771662]
[1734340387521,8.57061662,219.36,219.31,5.16579869]
[1734340387726,2.2805,219.35,219.32,5.16579869]
[1734340387926,2.2805,219.35,219.3,13.13861662]
[1734340388128,2.2805,219.35,219.31,5.165685]
[1734340388328,2.2805,219.35,219.32,5.165685]
[1734340388528,2.2805,219.35,219.33,5.165685]
[1734340388723,2.2805,219.35,219.3,13.13861662]
[1734340388926,2.2805,219.35,219.31,13.43389835]
[1734340389127,2.2805,219.35,219.32,5.16688398]
[1734340389336,2.2805,219.35,219.33,5.16688398]
[1734340389626,2.2805,219.35,219.34,5.16800983]
[1734340389826,2.2803,219.36,219.34,5.16800983]
[1734340390027,2.2803,219.36,219.32,8.61131662]
[1734340390222,2.2803,219.36,219.33,5.16955248]
[1734340390422,2.2803,219.36,219.32,8.61131662]
[1734340390423,2.2803,219.36,219.34,5.16955248]
[1734340390623,2.2803,219.36,219.32,8.61131662]
[1734340390827,2.2805,219.35,219.33,5.169717]
[1734340391035,50.84047817,219.5,219.34,11.50033362]
[1734340391229,6.33061662,219.41,219.36,0.68]
[1734340391724,50.84047817,219.5,219.36,0.68]
[1734340391929,6.33061662,219.44,219.37,5.17183358]
[1734340392130,2.2799,219.41,219.38,5.17368965]
[1734340392329,6.33061662,219.44,219.36,7.01061662]
[1734340392726,6.33061662,219.44,219.37,13.44968899]
[1734340392928,6.33061662,219.44,219.38,5.17291281]
[1734340392929,2.2797,219.42,219.38,5.17291281]
[1734340393124,6.33061662,219.44,219.39,5.17291281]
[1734340393329,6.33061662,219.44,219.37,2.2801]
[1734340393527,6.33061662,219.44,219.38,5.17228566]
[1734340393725,6.33061662,219.44,219.39,5.17228566]
[1734340393926,2.32,219.46,219.38,6.33061662]
[1734340394130,6.33061662,219.45,219.39,13.44698329]
[1734340394338,8.61011662,219.45,219.4,5.17212808]
[1734340394541,2.32,219.48,219.41,5.17212808]
[1734340394740,2.2795,219.45,219.4,2.2799]
[1734340394941,2.2795,219.45,219.41,5.17021696]
[1734340395143,2.2795,219.45,219.4,2.2799]
[1734340395342,2.2795,219.45,219.41,5.16828518]
[1734340395638,2.2795,219.45,219.4,2.2799]
[1734340395838,2.2795,219.44,219.41,5.16828518]
[1734340396141,2.2795,219.44,219.4,2.2799]
[1734340396342,2.2795,219.44,219.41,5.16663181]
[1734340396540,2.2795,219.44,219.4,8.61051662]
[1734340396747,1.5995,219.44,219.41,5.16662947]
[1734340397041,1.5995,219.44,219.4,8.61051662]
[1734340397436,65.82,219.67,219.44,2.2795]
[1734340397637,65.82,219.67,219.44,6.33061662]
[1734340397638,6.33061662,219.51,219.44,6.33061662]
[1734340397838,6.33061662,219.53,219.46,6.33061662]
[1734340398036,6.33061662,219.53,219.48,2.2791]
[1734340398241,6.33061662,219.53,219.46,6.33061662]
[1734340399236,2.2778,219.6,219.47,2.2792]
[1734340399442,6.33061662,219.53,219.48,1.5368]
[1734340400137,2.2788,219.52,219.48,1.5368]
[1734340400337,6.33061662,219.51,219.43,6.33061662]
[1734340400645,6.33061662,219.51,219.44,5.15458287]
[1734340400846,6.33061662,219.47,219.45,5.15458287]
[1734340401041,6.33061662,219.47,219.42,1.4341]
[1734340402845,2.2794,219.45,219.42,1.4341]
[1734340403939,2.2793,219.46,219.42,1.4341]
[1734340404341,2.32,219.5,219.42,1.4341]
[1734340404538,6.33061662,219.48,219.42,1.4341]
[1734340405143,2.2794,219.45,219.42,1.4341]
[1734340405353,6.33061662,219.46,219.39,6.33061662]
[1734340406546,2.2797,219.42,219.39,6.33061662]
[1734340408245,2.32,219.45,219.39,6.33061662]
[1734340408842,4.5995,219.45,219.41,6.33061662]
[1734340409341,2.32,219.45,219.42,2.2797]
[1734340409542,2.32,219.45,219.41,6.33061662]
[1734340409748,2.32,219.45,219.39,6.33061662]
[1734340410545,2.2796,219.43,219.39,8.61061662]
[1734340410840,2.32,219.45,219.39,6.33061662]
[1734340411044,2.2798,219.41,219.39,6.33061662]
[1734340411348,2.32,219.45,219.42,0.68]
[1734340412046,2.2797,219.43,219.42,0.68]
[1734340414349,2.32,219.45,219.42,0.68]
[1734340414946,2.2795,219.44,219.42,0.68]
[1734340415449,2.2795,219.44,219.41,6.33061662]
[1734340416152,2.32,219.48,219.43,6.33061662]
[1734340416344,8.65061662,219.5,219.43,6.33061662]
[1734340416543,2.2794,219.46,219.43,6.33061662]
[1734340416948,1.5994,219.46,219.43,6.33061662]
[1734340418553,0.9194,219.46,219.43,6.33061662]
[1734340419853,0.2394,219.46,219.43,6.33061662]
[1734340420159,0.2394,219.46,219.38,2.32]
[1734340420160,5.35675402,219.54,219.45,6.33061662]
[1734340420353,2.32,219.53,219.47,6.33061662]
[1734340420648,11.68737064,219.54,219.47,6.33061662]
[1734340420649,6.33061662,219.54,219.47,6.33061662]
[1734340420848,1.4752,219.62,219.49,6.33061662]
[1734340420849,6.33061662,219.56,219.49,6.33061662]
[1734340421249,2.2786,219.53,219.49,8.60961662]
[1734340422857,6.33061662,219.54,219.44,6.9556]
[1734340423053,2.2789,219.5,219.46,6.33061662]
[1734340423256,6.33061662,219.52,219.46,6.33061662]
[1734340423953,2.2791,219.48,219.46,6.33061662]
[1734340424150,6.33061662,219.48,219.4,6.33061662]
[1734340424355,6.33061662,219.46,219.4,6.33061662]
[1734340424954,2.2796,219.44,219.4,6.33061662]
[1734340426563,2.2796,219.44,219.4,8.61051662]
[1734340427155,2.2794,219.45,219.41,2.2798]
[1734340427355,1.5994,219.45,219.41,2.2798]
[1734340427859,1.5994,219.45,219.42,6.33061662]
[1734340428059,2.2793,219.46,219.42,8.61031662]
[1734340428657,2.2796,219.44,219.4,6.33061662]
[1734340428961,2.0796,219.44,219.4,6.33061662]
[1734340429558,6.33061662,219.46,219.4,6.33061662]
[1734340430258,2.2796,219.44,219.4,6.33061662]
[1734340430859,6.33061662,219.46,219.4,6.33061662]
[1734340431065,2.2797,219.42,219.41,5.16465367]
[1734340431266,2.2797,219.42,219.38,6.33061662]
[1734340431461,2.2797,219.42,219.39,13.43260935]
[1734340431662,2.2797,219.42,219.4,5.16638821]
[1734340431864,2.2797,219.42,219.41,5.16638821]
[1734340432059,2.2797,219.42,219.41,5.1663443]
[1734340434260,6.33061662,219.46,219.41,5.1663443]
[1734340434467,2.2796,219.43,219.39,2.28]
[1734340434666,2.2796,219.43,219.4,13.44618711]
[1734340434867,2.2796,219.43,219.41,5.17167487]
[1734340435066,2.2796,219.43,219.39,2.28]
[1734340435067,2.2796,219.43,219.42,5.17167487]
[1734340435265,1.527,219.51,219.42,11.50229149]
[1734340435266,8.59061662,219.49,219.42,11.50229149]
[1734340435464,8.59061662,219.49,219.43,5.17167487]
[1734340435764,2.2794,219.46,219.44,5.17167487]
[1734340435966,2.2794,219.46,219.42,6.33061662]
[1734340436160,2.2794,219.46,219.43,13.45251463]
[1734340436367,2.2794,219.45,219.44,5.17289711]
[1734340436666,2.2794,219.45,219.42,6.33061662]
[1734340436869,2.2794,219.45,219.43,5.17501213]
[1734340437066,2.2794,219.45,219.42,6.33061662]
[1734340437364,2.2794,219.45,219.43,5.1758311]
[1734340437562,2.2794,219.45,219.44,5.1758311]
[1734340438158,2.2789,219.5,219.45,2.2793]
[1734340438465,6.33061662,219.51,219.45,2.2793]
[1734340438860,2.279,219.49,219.45,2.2793]
[1734340439366,2.279,219.49,219.46,5.17629667]
[1734340439567,2.279,219.49,219.47,5.17602703]
[1734340439770,2.279,219.49,219.45,2.2793]
[1734340439960,2.279,219.49,219.46,5.17601307]
[1734340440161,2.2791,219.48,219.47,5.17601307]
[1734340443969,2.2791,219.48,219.45,2.2793]
[1734340444269,2.2791,219.48,219.46,13.45658443]
[1734340444569,2.279,219.5,219.47,5.17532559]
[1734340444766,6.33061662,219.51,219.45,2.2793]
[1734340444962,6.33061662,219.51,219.46,5.1757891]
[1734340445165,2.2791,219.48,219.47,5.1757891]
[1734340446170,2.279,219.49,219.43,6.33061662]
[1734340446369,6.33061662,219.51,219.44,5.17626444]
[1734340446572,6.33061662,219.51,219.42,1.4991]
[1734340446573,6.33061662,219.51,219.45,5.17626444]
[1734340446771,2.2794,219.46,219.43,6.33061662]
[1734340446972,2.2794,219.46,219.44,5.17635615]
[1734340447177,2.2794,219.46,219.43,6.33061662]
[1734340447375,2.2794,219.46,219.44,5.17632883]
[1734340447669,6.33061662,219.47,219.28,15.52923761]
[1734340447868,6.33061662,219.45,219.37,8.59061662]
[1734340448068,6.33061662,219.45,219.38,13.45931793]
[1734340448272,6.33061662,219.45,219.39,13.45931793]
[1734340448471,2.26,219.46,219.4,5.17666074]
[1734340448674,2.26,219.46,219.39,6.33061662]
[1734340448675,8.59061662,219.46,219.39,6.33061662]
[1734340448971,2.2798,219.42,219.4,5.17690193]
[1734340449172,2.2798,219.42,219.39,6.33061662]
[1734340449372,2.2798,219.42,219.4,5.17673729]
[1734340449572,2.2798,219.42,219.39,6.33061662]
[1734340449866,2.26,219.46,219.4,5.1767373]
[1734340450074,2.2796,219.44,219.41,5.1767373]
[1734340450273,8.59061662,219.46,219.39,8.61061662]
[1734340450474,8.59061662,219.46,219.4,5.17650647]
[1734340450777,8.59061662,219.46,219.39,6.33061662]
[1734340450977,8.59061662,219.46,219.4,5.17650235]
[1734340451178,8.59061662,219.46,219.39,6.33061662]
[1734340451179,8.59061662,219.46,219.41,5.17650235]
[1734340451479,2.2797,219.42,219.39,6.33061662]
[1734340451681,2.2797,219.42,219.4,5.17649795]
[1734340451978,2.2797,219.42,219.41,5.17649795]
[1734340453778,2.2795,219.45,219.41,5.1767798]
[1734340453973,8.59061662,219.46,219.42,5.1767798]
[1734340454177,8.59061662,219.46,219.39,6.33061662]
[1734340454378,8.59061662,219.46,219.4,13.45950624]
[1734340454578,8.59061662,219.46,219.41,5.17673317]
[1734340454778,8.59061662,219.46,219.42,5.17673317]
[1734340454978,8.59061662,219.46,219.39,6.33061662]
[1734340455283,2.2798,219.42,219.4,13.45965429]
[1734340455483,2.2798,219.42,219.41,5.17679011]
[1734340456788,6.33061662,219.42,219.35,7.91121662]
[1734340457088,6.33061662,219.4,219.36,5.17759003]
[1734340457284,6.33061662,219.4,219.33,6.33061662]
[1734340457285,8.55061662,219.4,219.33,6.33061662]
[1734340457483,2.2804,219.35,219.34,13.4588945]
[1734340457678,2.2804,219.35,219.34,5.17649788]
[1734340458289,2.2804,219.35,219.27,3.0337]
[1734340458290,2.2807,219.33,219.3,6.33061662]
[1734340458588,2.2807,219.33,219.31,5.17413329]
[1734340458783,2.2807,219.33,219.32,5.17413329]
[1734340459486,2.2807,219.33,219.27,3.0337]
[1734340459487,2.2808,219.32,219.29,6.33061662]
[1734340459784,2.2808,219.32,219.3,5.17132814]
[1734340460082,2.2808,219.32,219.31,5.17132814]
[1734340460580,2.2808,219.32,219.28,8.61181662]
[1734340460778,2.281,219.3,219.29,5.16862108]
[1734340461178,2.22,219.33,219.17,4.4612]
[1734340461488,2.281,219.3,219.27,6.33061662]
[1734340462882,6.33061662,219.32,219.25,6.33061662]
[1734340463187,6.33061662,219.32,219.26,5.16264182]
[1734340463188,2.2811,219.29,219.26,5.16264182]
[1734340463386,2.2811,219.29,219.25,6.33061662]
[1734340463586,2.2811,219.29,219.26,5.15929279]
[1734340463787,2.2811,219.29,219.25,6.33061662]
[1734340463987,2.2811,219.29,219.26,5.15929309]
[1734340464188,2.2811,219.29,219.25,6.33061662]
[1734340464989,2.2811,219.29,219.25,8.61211662]
[1734340469200,2.2811,219.29,219.25,6.33061662]
[1734340471997,6.33061662,219.3,219.19,2.22]
[1734340472197,2.2813,219.27,219.24,6.33061662]
[1734340474200,6.33061662,219.3,219.24,6.33061662]
[1734340474506,4.501,219.3,219.26,6.33061662]
[1734340475304,2.2808,219.32,219.28,6.33061662]
[1734340477803,2.2808,219.32,219.28,8.61181662]
[1734340479007,2.2806,219.34,219.3,6.33061662]
[1734340479307,2.22,219.36,219.3,6.33061662]
[1734340479609,8.55061662,219.37,219.3,6.33061662]
[1734340480210,2.2805,219.35,219.3,8.61151662]
[1734340480909,2.2805,219.35,219.31,2.2808]
[1734340481914,2.2804,219.36,219.31,2.2808]
[1734340482509,2.2805,219.35,219.31,2.2808]
[1734340483918,2.2807,219.33,219.3,6.33061662]
[1734340484115,6.33061662,219.37,219.3,6.33061662]
[1734340484313,8.55061662,219.38,219.3,6.33061662]
[1734340484807,2.2804,219.35,219.31,2.2809]
[1734340485315,2.2803,219.36,219.32,2.2807]
[1734340485512,2.16,219.4,219.34,6.33061662]
[1734340485819,2.2801,219.39,219.34,8.61111662]
[1734340486016,2.16,219.41,219.36,6.33061662]
[1734340486314,2.16,219.46,219.38,6.33061662]
[1734340486521,2.2796,219.44,219.39,2.28]
[1734340486711,6.33061662,219.46,219.38,6.33061662]
[1734340488610,2.2795,219.44,219.39,2.28]
[1734340489518,2.2795,219.44,219.38,6.33061662]
[1734340489519,6.33061662,219.46,219.4,2.2799]
[1734340489817,8.61001662,219.46,219.4,8.61051662]
[1734340490013,6.33061662,219.46,219.38,2.16]
[1734340490214,6.33061662,219.46,219.38,6.33061662]
[1734340490410,6.33061662,219.46,219.37,2.16]
[1734340490618,6.33061662,219.46,219.38,6.33061662]
[1734340491419,2.2796,219.43,219.38,8.61071662]
[1734340493323,2.2796,219.43,219.39,5.1547143]
[1734340493521,2.2796,219.43,219.38,8.61071662]
[1734340493714,2.2796,219.43,219.39,5.1547143]
[1734340493916,2.2796,219.43,219.38,8.61071662]
[1734340494114,2.2796,219.43,219.39,5.15471432]
[1734340494322,2.2796,219.43,219.38,8.61071662]
[1734340494518,2.2795,219.44,219.39,2.28]
[1734340495120,2.2795,219.44,219.4,6.33061662]
[1734340495722,2.2795,219.44,219.4,8.61051662]
[1734340496027,2.2795,219.44,219.38,1.5358]
[1734340496220,5.54202439,219.48,219.38,7.86641662]
[1734340496221,6.33061662,219.45,219.38,7.86641662]
[1734340496822,2.2797,219.42,219.38,7.86641662]
[1734340497421,5.54202439,219.48,219.36,2.9436]
[1734340497627,6.33061662,219.42,219.36,2.9436]
[1734340498126,2.16,219.44,219.36,2.9436]
[1734340498324,2.28,219.4,219.36,2.9436]
[1734340498529,6.33061662,219.42,219.36,2.9436]
[1734340498929,2.28,219.39,219.36,2.9436]
[1734340500430,2.2798,219.42,219.37,8.61081662]
[1734340500626,8.49061662,219.44,219.37,8.61081662]
[1734340501028,6.33061662,219.44,219.37,8.61081662]
[1734340501226,2.2797,219.42,219.37,8.61081662]
[1734340501526,6.33061662,219.46,219.39,8.61061662]
[1734340501731,6.33061662,219.46,219.39,6.33061662]
[1734340501938,6.33061662,219.42,219.37,6.33061662]
[1734340502233,6.33061662,219.42,219.36,2.9436]
[1734340503131,2.2801,219.39,219.36,2.9436]
[1734340503325,2.16,219.43,219.36,2.9436]
[1734340503531,8.49061662,219.43,219.36,2.9436]
[1734340503733,2.2798,219.41,219.37,6.33061662]
[1734340504027,6.33061662,219.45,219.39,6.33061662]
[1734340504729,2.2796,219.44,219.39,8.61051662]
[1734340505623,2.2796,219.44,219.4,2.2799]
[1734340506029,2.2796,219.44,219.39,8.61061662]
[1734340506330,6.33061662,219.45,219.37,6.33061662]
[1734340506529,6.33061662,219.43,219.34,2.2804]
[1734340506828,6.33061662,219.41,219.35,5.15528368]
[1734340507032,6.33061662,219.41,219.33,7.84681662]
[1734340507737,6.33061662,219.41,219.23,2.9835]
[1734340507738,6.33061662,219.39,219.29,2.16]
[1734340508028,6.33061662,219.37,219.31,6.33061662]
[1734340508529,6.33061662,219.37,219.29,6.33061662]
[1734340508732,2.2809,219.31,219.3,5.15756393]
[1734340508928,8.49061662,219.33,219.24,1.5068]
[1734340509133,8.49061662,219.33,219.26,6.33061662]
[1734340509337,2.281,219.3,219.26,6.33061662]
[1734340509630,2.16,219.36,219.28,6.33061662]
[1734340509836,2.16,219.37,219.31,6.33061662]
[1734340510131,2.2806,219.34,219.31,6.33061662]
[1734340510332,2.16,219.37,219.31,6.33061662]
[1734340510635,2.2803,219.36,219.31,8.61141662]
[1734340510831,2.2803,219.36,219.31,2.2808]
[1734340511134,2.2806,219.34,219.3,6.33061662]
[1734340511325,6.33061662,219.35,219.3,6.33061662]
[1734340511526,2.2809,219.31,219.28,6.33061662]
[1734340512335,2.2809,219.31,219.25,2.2815]
[1734340512634,2.2809,219.31,219.27,6.33061662]
[1734340513336,2.281,219.3,219.27,6.33061662]
[1734340514531,6.33061662,219.33,219.27,6.33061662]
[1734340515433,2.2811,219.29,219.27,6.33061662]
[1734340517036,2.2811,219.29,219.24,2.2816]
[1734340517237,2.2811,219.29,219.26,6.33061662]
[1734340517737,2.2811,219.29,219.23,5.1635]
[1734340517738,6.33061662,219.31,219.23,2.9835]
[1734340518038,6.33061662,219.31,219.24,5.16057861]
[1734340518237,2.2815,219.26,219.23,7.88231662]
[1734340518538,2.2815,219.26,219.24,5.16041579]
[1734340518834,2.2815,219.25,219.23,7.88231662]
[1734340520333,6.33061662,219.29,219.23,7.88231662]
[1734340520641,6.33061662,219.31,219.24,5.15909458]
[1734340520931,2.2813,219.28,219.23,10.16401662]
[1734340521138,2.2813,219.28,219.24,5.15907358]
[1734340521332,6.33061662,219.31,219.23,7.88231662]
[1734340521536,6.33061662,219.31,219.24,5.15877945]
[1734340521737,6.33061662,219.31,219.23,7.88231662]
[1734340522034,2.2816,219.24,219.22,6.33061662]
[1734340522239,2.2816,219.24,219.23,5.15910651]
[1734340522436,2.2816,219.24,219.22,6.33061662]
[1734340522635,2.2816,219.24,219.23,5.15824024]
[1734340522840,2.2816,219.24,219.22,6.33061662]
[1734340523436,2.2817,219.23,219.21,6.33061662]
[1734340525836,2.2824,219.16,219.15,0.28483]
[1734340526035,2.2824,219.16,219.03,1.5285]
[1734340526036,8.51061662,219.16,219.03,1.5285]
[1734340526239,6.33061662,219.09,219.0,1.4679]
[1734340526443,6.33061662,219.09,218.92,15.51433987]
[1734340526444,6.33061662,219.06,218.98,11.93835059]
[1734340526639,2.18,219.05,218.98,11.93835059]
[1734340526842,6.33061662,219.06,218.98,11.93835059]
[1734340527143,2.18,219.05,218.98,11.93835059]
[1734340527347,6.33061662,219.02,218.92,1.5285]
[1734340527539,6.33061662,219.01,218.93,6.33061662]
[1734340528041,5.55949068,219.09,218.97,9.91609792]
[1734340528338,5.55949068,219.09,218.98,1.4723]
[1734340528339,2.18,219.08,218.98,1.4723]
[1734340528542,2.18,219.07,218.98,1.4723]
[1734340528737,2.2831,219.1,219.01,2.2839]
[1734340529043,2.18,219.1,219.0,9.91609792]
[1734340529240,2.18,219.1,219.01,3.0274]
[1734340529440,2.18,219.1,219.03,2.2837]
[1734340529641,2.18,219.1,219.01,3.0274]
[1734340529937,2.18,219.11,219.01,3.0274]
[1734340530444,50.90494683,219.17,219.01,3.0274]
[1734340530445,50.90494683,219.17,219.04,9.91609792]
[1734340530640,2.18,219.16,219.04,9.91609792]
[1734340531446,2.2826,219.15,219.07,2.2833]
[1734340531642,2.18,219.14,219.07,2.2833]
[1734340532043,50.90494683,219.17,219.08,2.2832]
[1734340532242,2.18,219.16,219.08,2.2832]
[1734340532437,50.90494683,219.17,219.08,2.2832]
[1734340532642,2.18,219.15,219.08,2.2832]
[1734340532842,2.18,219.15,219.04,9.91609792]
[1734340533045,2.18,219.15,219.07,2.2833]
[1734340533346,2.18,219.14,219.07,2.2833]
[1734340533546,4.4626,219.14,219.07,2.2833]
[1734340533936,2.18,219.14,219.04,9.91609792]
[1734340534138,2.2828,219.13,219.05,2.2835]
[1734340534345,2.2828,219.13,219.04,9.91609792]
[1734340535445,2.2828,219.13,219.06,2.2834]
[1734340536038,2.18,219.14,219.03,2.2838]
[1734340536237,9.91609792,219.13,219.01,3.0274]
[1734340536439,2.2828,219.13,219.03,9.91609792]
[1734340536645,2.18,219.12,219.03,9.91609792]
[1734340536841,15.38373744,219.16,219.06,2.2834]
[1734340537045,4.4626,219.15,219.03,9.91609792]
[1734340537549,2.18,219.2,219.11,9.91609792]
[1734340537745,9.91609792,219.34,219.12,1.5399]
[1734340537746,9.91609792,219.25,219.12,1.5399]
[1734340537946,9.91609792,219.25,219.16,2.2824]
[1734340537947,2.18,219.24,219.16,2.2824]
[1734340538144,2.2818,219.22,219.16,2.2824]
[1734340538449,9.91609792,219.45,219.22,2.2818]
[1734340538654,248.09213022,219.48,219.27,9.91609792]
[1734340538655,5.5515142,219.37,219.27,9.91609792]
[1734340538944,5.5515142,219.37,219.28,1.5399]
[1734340539145,2.2807,219.33,219.25,2.18]
[1734340539351,9.91609792,219.35,219.24,7.508]
[1734340540048,2.18,219.34,219.24,7.508]
[1734340540445,2.2808,219.32,219.24,7.508]
[1734340540949,2.18,219.34,219.24,3.7156]
[1734340541553,2.2807,219.33,219.24,3.7156]
[1734340541743,2.18,219.34,219.24,1.5356]
[1734340542147,2.2808,219.32,219.24,1.5356]
[1734340542351,2.18,219.34,219.24,1.5356]
[1734340543052,11.49089792,219.36,219.24,1.5356]
[1734340543243,9.3201142,219.37,219.24,1.5356]
[1734340543647,2.2806,219.34,219.25,2.2814]
[1734340543951,9.3201142,219.37,219.24,1.5356]
[1734340544149,9.91609792,219.36,219.25,2.2]
[1734340544551,2.2809,219.31,219.25,2.2]
[1734340545148,2.2808,219.32,219.25,4.4814]
[1734340546358,2.2807,219.33,219.26,12.19749792]
[1734340546654,9.3201142,219.37,219.24,1.5356]
[1734340546854,9.3201142,219.37,219.24,6.0171]
[1734340547352,9.3201142,219.37,219.25,2.2815]
[1734340547554,9.3201142,219.37,219.26,9.91609792]
[1734340548954,2.281,219.31,219.25,2.2814]
[1734340549154,19.23621212,219.37,219.24,1.5356]
[1734340549756,2.2806,219.34,219.24,1.5356]
[1734340549952,19.23621212,219.37,219.24,1.5356]
[1734340550158,9.91609792,219.34,219.2,9.91609792]
[1734340550356,9.91609792,219.34,219.2,12.11609792]
[1734340550556,9.91609792,219.34,219.2,9.91609792]
[1734340550557,1.5871,219.33,219.2,9.91609792]
[1734340550755,2.2,219.32,219.2,9.91609792]
[1734340550951,2.2818,219.22,219.17,9.91609792]
[1734340551254,2.2,219.27,219.17,9.91609792]
[1734340551560,2.2,219.26,219.14,9.91609792]
[1734340551759,2.2,219.25,219.14,9.91609792]
[1734340551964,3.7592,219.25,219.14,9.91609792]
[1734340552158,2.2823,219.18,219.14,9.91609792]
[1734340552760,2.2823,219.18,219.13,2.2826]
[1734340553362,3.7592,219.25,219.14,9.91609792]
[1734340553662,2.282,219.21,219.16,2.2824]
[1734340554568,2.282,219.2,219.14,12.19869792]
[1734340555768,2.2821,219.19,219.14,9.91609792]
[1734340557066,2.282,219.21,219.14,14.39869792]
[1734340557267,3.7592,219.25,219.14,14.39869792]
[1734340557563,1.5592,219.25,219.14,14.39869792]
[1734340557756,3.7592,219.25,219.14,14.39869792]
[1734340558467,2.282,219.2,219.14,14.39869792]
[1734340558864,3.7592,219.25,219.14,12.11609792]